bitfinex/quotes_SOLUSD_20250815
["timestamp","ask_amount","ask_price","bid_price","bid_amount"]
[1755299961165,66.08943717,185.97,185.96,0.03]
[1755299961360,56.71756382,185.97,185.96,0.03]
[1755299961685,56.71361829,185.97,185.96,0.03]
[1755299962185,26.0,185.97,185.96,0.03]
[1755299962392,26.72,185.97,185.96,0.03]
[1755299962559,38.01438063,185.97,185.96,0.03]
[1755299963260,56.71163944,185.97,185.96,0.03]
[1755299963670,45.41725881,185.97,185.96,0.03]
[1755299963874,56.71163944,185.97,185.96,0.03]
[1755299964182,30.71163944,185.97,185.96,0.03]
[1755299964561,36.08885081,185.97,185.96,0.03]
[1755299964767,15.10621557,185.96,185.95,0.03]
[1755299965074,41.10621557,185.93,185.92,0.03]
[1755299965372,15.10621557,185.92,185.91,0.03]
[1755299965574,15.10621557,185.92,185.86,0.03]
[1755299965575,41.10621557,185.9,185.86,0.03]
[1755299965774,55.99163944,185.9,185.86,0.03]
[1755299965967,56.71163944,185.9,185.86,0.03]
[1755299966884,53.1205962,185.9,185.86,0.03]
[1755299967676,56.7051863,185.9,185.86,0.03]
[1755299967855,73.37880307,185.9,185.86,0.03]
[1755299968062,77.36095135,185.9,185.86,0.03]
[1755299968261,41.10621557,185.87,185.86,0.03]
[1755299968480,15.10621557,185.82,185.76,40.12]
[1755299968690,11.29438063,185.78,185.76,40.12]
[1755299968984,11.29438063,185.78,185.76,0.2]
[1755299969680,26.0,185.79,185.76,0.2]
[1755299969868,26.0,185.79,185.77,0.9]
[1755299970074,37.29438063,185.79,185.77,0.2]
[1755299970787,37.29438063,185.79,185.77,5.58300048]
[1755299971482,11.29438063,185.78,185.77,0.2]
[1755299973690,26.0,185.79,185.77,5.58296796]
[1755299974183,37.29438063,185.79,185.77,5.58296796]
[1755299974585,11.29438063,185.78,185.77,0.2]
[1755299975182,12.01438063,185.78,185.77,0.2]
[1755299975361,0.72,185.78,185.77,0.2]
[1755299975562,27.1205962,185.78,185.77,0.2]
[1755299976178,26.0,185.79,185.77,5.58300048]
[1755299976383,26.0,185.78,185.77,5.58300048]
[1755299976862,11.29438063,185.82,185.77,6.28300048]
[1755299977088,15.10621557,185.81,185.77,6.28300048]
[1755299977761,11.29438063,185.83,185.78,0.7]
[1755299977960,11.29438063,185.83,185.77,56.81738111]
[1755299977961,11.29438063,185.83,185.79,0.7]
[1755299978193,11.29438063,185.82,185.77,46.22300048]
[1755299978392,11.29438063,185.82,185.78,0.7]
[1755299978571,11.29438063,185.83,185.79,0.7]
[1755299978773,11.29438063,185.82,185.77,149.47488232]
[1755299978984,41.10621557,185.84,185.77,124.72300048]
[1755299978985,11.29438063,185.8,185.77,124.72300048]
[1755299979192,37.29438063,185.78,185.77,79.4]
[1755299979491,52.4005962,185.78,185.77,0.2]
[1755299979692,53.1205962,185.78,185.77,0.2]
[1755299980781,11.29438063,185.79,185.77,0.2]
[1755299981080,11.29438063,185.84,185.78,11.29438063]
[1755299981262,15.10621557,185.86,185.8,11.29438063]
[1755299981461,11.29438063,185.84,185.79,40.64]
[1755299981689,11.29438063,185.84,185.8,5.38213132]
[1755299981991,11.29438063,185.84,185.8,6.08213132]
[1755299982697,26.4005962,185.85,185.8,6.08213132]
[1755299983765,27.1205962,185.85,185.8,6.08213132]
[1755299983992,11.29438063,185.84,185.8,6.08213132]
[1755299985775,11.96438063,185.84,185.8,5.38213132]
[1755299986168,26.4005962,185.85,185.81,0.69]
[1755299986385,26.4005962,185.85,185.8,5.38213132]
[1755299986578,26.4005962,185.85,185.8,6.07213132]
[1755299986781,11.29438063,185.84,185.8,5.38213132]
[1755299986978,0.67,185.83,185.8,5.38213132]
[1755299987283,11.96438063,185.82,185.8,5.38213132]
[1755299987866,11.96438063,185.81,185.79,39.94]
[1755299988183,11.96438063,185.8,185.79,39.94]
[1755299988383,11.29438063,185.8,185.79,39.94]
[1755299988574,11.96438063,185.8,185.79,39.94]
[1755299988772,11.96438063,185.8,185.77,0.2]
[1755299989104,11.29438063,185.78,185.77,0.2]
[1755299989670,11.96438063,185.78,185.77,0.2]
[1755299989887,0.67,185.78,185.77,0.2]
[1755299990202,37.96438063,185.78,185.77,0.2]
[1755299992002,58.45330693,185.78,185.77,0.2]
[1755299992175,65.94315164,185.78,185.77,0.2]
[1755299995095,60.56044091,185.78,185.77,0.2]
[1755299995279,49.26606028,185.78,185.77,0.2]
[1755299995475,40.84254375,185.78,185.77,0.2]
[1755299995689,37.29438063,185.78,185.77,0.2]
[1755299996793,11.29438063,185.78,185.77,0.2]
[1755299997277,19.47681074,185.78,185.77,0.2]
[1755299997484,34.58302631,185.78,185.77,0.2]
[1755299998687,39.96573704,185.78,185.77,0.2]
[1755299999401,33.91302631,185.78,185.77,0.2]
[1755300000108,18.80681074,185.78,185.77,0.2]
[1755300000405,3.55863192,185.78,185.77,6.27300048]
[1755300000582,3.55863192,185.78,185.77,85.47300048]
[1755300000788,11.29438063,185.81,185.77,85.47300048]
[1755300001014,18.82725898,185.8,185.77,85.47300048]
[1755300001224,7.53633955,185.79,185.77,85.47300048]
[1755300001393,34.60693575,185.78,185.77,79.4]
[1755300001583,34.60693575,185.78,185.77,0.2]
[1755300001781,23.31255512,185.78,185.77,0.2]
[1755300001984,34.60693575,185.78,185.77,0.2]
[1755300002181,18.83072018,185.78,185.77,0.2]
[1755300002411,7.53633955,185.78,185.77,6.27300048]
[1755300002786,7.53633955,185.78,185.77,5.58300048]
[1755300003010,34.60693575,185.78,185.77,0.2]
[1755300003219,65.98964648,185.78,185.77,0.2]
[1755300003510,60.60693575,185.78,185.77,0.2]
[1755300003725,39.98964648,185.78,185.77,0.2]
[1755300003898,44.47764669,185.78,185.77,0.2]
[1755300004591,38.42493596,185.78,185.77,0.2]
[1755300004791,59.93962716,185.78,185.77,0.2]
[1755300005202,18.83341159,185.78,185.77,0.2]
[1755300005386,7.53903096,185.78,185.77,6.27300048]
[1755300006786,7.54727731,185.78,185.77,6.27300048]
[1755300008311,4.4853088,185.84,185.77,110.22488232]
[1755300008495,7.57385437,185.83,185.82,11.29438063]
[1755300008699,7.57385437,185.83,185.82,51.90438063]
[1755300008896,3.58760915,185.83,185.82,51.90438063]
[1755300010189,0.06,185.86,185.83,5.38126244]
[1755300010389,7.58372152,185.85,185.83,16.67564307]
[1755300010683,3.59198777,185.84,185.83,5.38126244]
[1755300010887,0.06,185.86,185.83,16.67564307]
[1755300011098,0.06,185.86,185.85,11.29438063]
[1755300011320,18.94041761,185.86,185.81,0.69]
[1755300011484,11.29438063,185.83,185.82,39.9]
[1755300011691,18.88041761,185.83,185.82,39.9]
[1755300012189,18.88041761,185.83,185.8,39.9]
[1755300012501,18.88041761,185.82,185.8,45.28205288]
[1755300012704,7.58603698,185.81,185.8,45.28205288]
[1755300013289,7.58603698,185.81,185.8,39.9]
[1755300013502,18.88041761,185.81,185.8,39.9]
[1755300013712,7.58603698,185.81,185.8,39.9]
[1755300014309,3.59289173,185.81,185.8,39.9]
[1755300014608,3.59289173,185.81,185.8,45.97213132]
[1755300014810,3.59289173,185.81,185.8,45.28213132]
[1755300015194,11.29438063,185.82,185.8,45.28213132]
[1755300015607,45.57118556,185.81,185.77,0.2]
[1755300015794,11.29438063,185.78,185.77,0.2]
[1755300018792,11.98438063,185.78,185.77,0.2]
[1755300019302,32.47330693,185.78,185.77,0.2]
[1755300019505,66.05982113,185.78,185.77,0.2]
[1755300019929,40.05982113,185.78,185.77,0.2]
[1755300021198,28.7654405,185.78,185.77,0.2]
[1755300021394,36.06675615,185.78,185.77,0.2]
[1755300021599,40.05825017,185.78,185.77,0.2]
[1755300022225,79.95825017,185.78,185.77,0.2]
[1755300022718,79.95688693,185.78,185.77,0.2]
[1755300023892,18.87796063,185.78,185.77,0.2]
[1755300024092,14.88782985,185.78,185.77,0.2]
[1755300024317,40.88782985,185.78,185.77,0.2]
[1755300024524,37.29438063,185.78,185.77,0.2]
[1755300024894,11.29438063,185.8,185.77,6.28300048]
[1755300025202,11.29438063,185.79,185.77,6.28300048]
[1755300025396,11.29438063,185.79,185.77,5.58300048]
[1755300025813,11.29438063,185.79,185.77,0.2]
[1755300026214,14.88477229,185.79,185.77,0.2]
[1755300026416,11.29438063,185.79,185.77,0.2]
[1755300026929,14.88498049,185.79,185.77,0.2]
[1755300027129,11.29438063,185.79,185.77,0.2]
[1755300027340,3.59066847,185.8,185.77,5.5828654]
[1755300027499,3.59066847,185.81,185.78,0.7]
[1755300027821,77.17438063,185.83,185.78,0.7]
[1755300028018,3.591081,185.82,185.79,5.38242101]
[1755300028238,3.591081,185.81,185.79,6.08242101]
[1755300028413,11.29438063,185.84,185.8,0.7]
[1755300028603,14.88568152,185.83,185.8,0.7]
[1755300028802,11.29438063,185.83,185.8,0.7]
[1755300029301,14.88563011,185.83,185.8,0.7]
[1755300029501,11.29438063,185.83,185.8,0.7]
[1755300029702,14.88579822,185.84,185.8,0.7]
[1755300029925,14.88579822,185.83,185.8,6.08189616]
[1755300030227,11.29438063,185.83,185.8,6.08189616]
[1755300030603,3.59096456,185.84,185.8,6.08189616]
[1755300030819,41.10621557,185.85,185.81,0.7]
[1755300031022,14.88532127,185.84,185.8,5.38189616]
[1755300031240,11.29438063,185.83,185.8,5.38189616]
[1755300031421,11.29438063,185.83,185.79,79.2]
[1755300031422,26.4005962,185.81,185.79,79.2]
[1755300031603,4.28048207,185.8,185.77,0.2]
[1755300031800,3.59048207,185.8,185.77,6.28294137]
[1755300032013,11.29438063,185.81,185.77,6.28294137]
[1755300032220,3.59089152,185.8,185.77,6.28294137]
[1755300032540,65.88,185.82,185.77,5.58294137]
[1755300032711,11.29438063,185.8,185.77,5.58294137]
[1755300032909,14.88536234,185.8,185.77,5.58294137]
[1755300033124,11.29438063,185.8,185.77,5.58294137]
[1755300033335,11.29438063,185.78,185.77,0.2]
[1755300033533,14.88376602,185.78,185.77,0.2]
[1755300033835,0.69,185.79,185.77,0.2]
[1755300033836,26.0,185.79,185.77,0.2]
[1755300034033,26.0,185.81,185.78,0.7]
[1755300034906,11.29438063,185.83,185.79,0.7]
[1755300035114,0.75,185.86,185.8,11.99438063]
[1755300035414,3.59027317,185.85,185.8,0.7]
[1755300035738,11.29438063,185.83,185.77,110.23488232]
[1755300036835,0.69,185.84,185.79,5.38242101]
[1755300037130,26.0,185.85,185.8,0.7]
[1755300037333,3.59133712,185.84,185.8,0.7]
[1755300037513,26.0,185.85,185.8,0.7]
[1755300037713,3.59133784,185.84,185.81,0.7]
[1755300038026,3.59111442,185.85,185.82,0.7]
[1755300038339,11.35438063,185.86,185.82,0.7]
[1755300038503,3.59072784,185.85,185.82,0.7]
[1755300038827,11.35438063,185.86,185.82,0.7]
[1755300039033,3.59081427,185.85,185.83,5.38126244]
[1755300039330,0.06,185.86,185.83,5.38126244]
[1755300039536,0.06,185.86,185.83,6.08126244]
[1755300039723,0.06,185.86,185.84,0.7]
[1755300040536,11.35438063,185.86,185.83,84.58126244]
[1755300040910,0.06,185.86,185.83,84.58126244]
[1755300041117,0.06,185.86,185.83,85.28126244]
[1755300042321,0.06,185.86,185.83,84.58126244]
[1755300042532,0.06,185.86,185.85,11.29438063]
[1755300042710,0.06,185.86,185.85,90.49438063]
[1755300042906,0.06,185.86,185.85,91.19438063]
[1755300043136,0.06,185.86,185.85,131.03438063]
[1755300043506,0.06,185.86,185.85,119.04]
[1755300043706,11.35438063,185.86,185.85,39.84]
[1755300044042,15.63304721,185.86,185.82,39.84]
[1755300044253,11.29438063,185.83,185.82,39.84]
[1755300044536,11.29438063,185.83,185.79,45.22233782]
[1755300044947,11.29438063,185.83,185.79,45.92233782]
[1755300046324,15.10621557,185.83,185.8,0.72]
[1755300049434,15.10621557,185.83,185.81,5.38184166]
[1755300051643,15.10621557,185.83,185.8,84.58204281]
[1755300051842,0.7,185.82,185.8,79.2]
[1755300052821,53.1005962,185.81,185.77,79.4]
[1755300053122,53.1005962,185.81,185.77,0.2]
[1755300053123,31.78330693,185.78,185.77,0.2]
[1755300053530,32.48330693,185.78,185.77,0.2]
[1755300053840,27.1005962,185.78,185.77,0.2]
[1755300055227,30.68777566,185.78,185.77,0.2]
[1755300055430,27.1005962,185.78,185.77,0.2]
[1755300055659,36.06999652,185.78,185.77,0.2]
[1755300055959,79.87523741,185.78,185.77,0.2]
[1755300060345,74.49252668,185.78,185.77,0.2]
[1755300060552,70.50728579,185.78,185.77,0.2]
[1755300060849,96.50728579,185.78,185.77,0.2]
[1755300061038,101.88999652,185.78,185.77,0.2]
[1755300061242,96.50728579,185.78,185.77,0.2]
[1755300061433,95.80728579,185.78,185.77,0.2]
[1755300061833,96.50728579,185.78,185.77,0.2]
[1755300062437,101.88999652,185.78,185.77,0.2]
[1755300062841,79.87355097,185.78,185.77,0.2]
[1755300064642,105.87355097,185.78,185.77,0.2]
[1755300066241,94.57917034,185.78,185.77,0.2]
[1755300066443,105.87355097,185.78,185.77,0.2]
[1755300066674,101.76167085,185.78,185.77,0.2]
[1755300067158,75.76167085,185.78,185.77,0.2]
[1755300069149,35.24167085,185.78,185.77,0.2]
[1755300069354,75.74167085,185.78,185.77,0.2]
[1755300073162,75.04167085,185.78,185.77,0.2]
[1755300074256,75.04005136,185.78,185.77,0.2]
[1755300074458,71.0581164,185.78,185.77,0.2]
[1755300074858,65.67540567,185.78,185.77,0.2]
[1755300075255,36.7691901,185.78,185.77,0.2]
[1755300075465,3.58668959,185.78,185.77,0.91]
[1755300075659,29.58668959,185.78,185.77,0.91]
[1755300076373,36.7691901,185.78,185.77,0.91]
[1755300077248,36.7691901,185.78,185.77,0.2]
[1755300077462,29.58668959,185.78,185.77,0.2]
[1755300077650,36.7691901,185.78,185.77,0.2]
[1755300078070,57.9181164,185.78,185.77,0.2]
[1755300078275,97.6981164,185.78,185.77,0.2]
[1755300078665,101.67916615,185.78,185.77,0.2]
[1755300081984,15.10621557,185.77,185.76,0.2]
[1755300082173,41.10621557,185.75,185.74,0.03]
[1755300082364,95.61645542,185.75,185.74,0.03]
[1755300082758,101.6600355,185.75,185.74,0.03]
[1755300082976,101.65738239,185.75,185.74,0.03]
[1755300083679,103.81633539,185.75,185.74,0.03]
[1755300084564,103.81633539,185.75,185.69,0.03]
[1755300084565,41.10621557,185.72,185.69,0.03]
[1755300084764,97.01985537,185.72,185.69,0.03]
[1755300084959,97.67985537,185.72,185.69,0.03]
[1755300085175,103.1962887,185.72,185.69,0.03]
[1755300085359,107.17348409,185.72,185.69,0.03]
[1755300085555,111.65879289,185.72,185.69,0.03]
[1755300085767,15.10621557,185.71,185.69,0.03]
[1755300085981,74.08544621,185.7,185.69,0.03]
[1755300086275,74.08544621,185.7,185.58,7.38250051]
[1755300086276,41.10621557,185.66,185.61,0.71]
[1755300086479,41.10621557,185.66,185.58,5.5882739]
[1755300086480,22.28871608,185.64,185.59,5.38793493]
[1755300086687,26.0,185.62,185.58,0.2]
[1755300086867,7.18250051,185.59,185.58,0.2]
[1755300087063,22.28871608,185.59,185.58,0.2]
[1755300087471,15.10621557,185.59,185.58,0.2]
[1755300087664,22.28871608,185.59,185.58,0.2]
[1755300088681,26.44475181,185.59,185.58,0.2]
[1755300089383,33.97972032,185.59,185.58,0.2]
[1755300090983,26.44475181,185.59,185.58,0.91]
[1755300091717,37.33853624,185.62,185.58,6.29851169]
[1755300091984,26.0,185.62,185.59,12.04853624]
[1755300092192,26.0,185.62,185.6,0.71]
[1755300092669,11.33853624,185.65,185.61,5.38764075]
[1755300092979,11.33853624,185.69,185.63,11.33853624]
[1755300093296,44.86417711,185.68,185.64,0.71]
[1755300093594,7.52564087,185.67,185.65,0.71]
[1755300093795,3.56440327,185.66,185.65,0.71]
[1755300094093,18.86471269,185.66,185.61,6.09764075]
[1755300094274,11.33853624,185.64,185.62,0.71]
[1755300094474,11.33853624,185.64,185.6,5.38789006]
[1755300094693,11.33853624,185.62,185.6,0.71]
[1755300094861,11.33853624,185.62,185.59,5.38815155]
[1755300094862,14.90280219,185.61,185.58,0.2]
[1755300095064,11.33853624,185.61,185.59,0.71]
[1755300095259,11.33853624,185.62,185.6,0.71]
[1755300095482,11.33853624,185.63,185.61,0.71]
[1755300095694,7.5254762,185.62,185.58,16.92694286]
[1755300095878,77.09853624,185.64,185.58,16.92694286]
[1755300096076,18.8640281,185.63,185.58,16.92694286]
[1755300096392,7.52549186,185.62,185.6,5.38793103]
[1755300096592,77.09853624,185.64,185.61,0.71]
[1755300096794,3.56469804,185.63,185.61,0.74]
[1755300096996,3.56540243,185.67,185.62,11.33853624]
[1755300097179,3.56540243,185.67,185.61,0.74]
[1755300097180,41.10621557,185.69,185.64,11.33853624]
[1755300097490,3.56695719,185.68,185.66,11.33853624]
[1755300097694,15.10621557,185.7,185.67,0.71]
[1755300097891,7.53168061,185.69,185.67,0.71]
[1755300098071,3.56727002,185.68,185.66,11.33853624]
[1755300098268,11.10215562,185.71,185.67,11.33853624]
[1755300098476,11.10215562,185.71,185.62,118.94]
[1755300098477,15.10621557,185.73,185.69,11.33853624]
[1755300098680,7.53401339,185.72,185.7,0.71]
[1755300098871,3.56840437,185.71,185.69,11.33853624]
[1755300099177,26.06,185.73,185.69,11.33853624]
[1755300099383,7.53517145,185.72,185.7,0.71]
[1755300099592,0.06,185.73,185.7,17.43342232]
[1755300099803,0.06,185.73,185.71,12.04853624]
[1755300100101,0.06,185.73,185.71,0.71]
[1755300101902,0.06,185.73,185.7,5.38488608]
[1755300102071,11.33853624,185.71,185.66,6.0961898]
[1755300102271,11.33853624,185.69,185.64,5.38677009]
[1755300102466,14.90818741,185.68,185.64,6.09677009]
[1755300102672,14.90747413,185.67,185.64,0.71]
[1755300102907,11.33853624,185.67,185.64,0.71]
[1755300103080,11.33853624,185.68,185.64,0.71]
[1755300103700,11.33853624,185.68,185.64,6.0966039]
[1755300104382,3.56913954,185.67,185.62,39.74]
[1755300104589,11.33853624,185.67,185.63,5.38706028]
[1755300104776,11.33853624,185.67,185.63,0.71]
[1755300104975,11.33853624,185.66,185.62,118.94]
[1755300105207,11.33853624,185.66,185.63,0.71]
[1755300105584,11.33853624,185.66,185.62,39.74]
[1755300105902,11.33853624,185.63,185.62,39.74]
[1755300106105,8.23520765,185.65,185.62,39.74]
[1755300106106,14.90744798,185.64,185.62,39.74]
[1755300106283,11.33853624,185.64,185.61,0.03]
[1755300106469,11.33853624,185.62,185.61,0.03]
[1755300106894,26.44475181,185.63,185.61,0.03]
[1755300107103,37.33853624,185.65,185.61,6.08752299]
[1755300107403,3.56936148,185.64,185.62,12.00853624]
[1755300107598,3.56936148,185.66,185.63,0.67]
[1755300107791,7.53641537,185.65,185.61,16.75605923]
[1755300108096,3.56936148,185.64,185.62,0.67]
[1755300108295,3.56936148,185.65,185.62,0.67]
[1755300108497,11.33853624,185.66,185.62,0.67]
[1755300108687,3.57013706,185.65,185.62,0.67]
[1755300108882,11.33853624,185.66,185.62,0.67]
[1755300109193,14.90893667,185.66,185.61,16.75605923]
[1755300109395,14.90893667,185.66,185.62,0.67]
[1755300109592,3.57040043,185.66,185.63,0.67]
[1755300109976,3.57040043,185.66,185.63,6.05702796]
[1755300111180,52.44475181,185.67,185.63,6.05702796]
[1755300111880,11.33853624,185.66,185.63,0.67]
[1755300112280,11.33853624,185.66,185.62,5.38730582]
[1755300112481,11.33853624,185.66,185.62,6.05730582]
[1755300113188,11.33853624,185.66,185.62,5.38730582]
[1755300113395,52.44475181,185.67,185.63,0.67]
[1755300114302,52.44475181,185.67,185.62,5.38730582]
[1755300114500,53.14475181,185.67,185.62,5.38730582]
[1755300114702,11.33853624,185.66,185.63,0.67]
[1755300114999,11.33853624,185.64,185.61,0.03]
[1755300115206,11.33853624,185.62,185.61,0.03]
[1755300115500,31.83210231,185.62,185.61,0.03]
[1755300115710,36.10313207,185.62,185.61,0.03]
[1755300116207,66.07113895,185.62,185.61,0.03]
[1755300116722,54.73260271,185.62,185.61,0.03]
[1755300116907,61.92572552,185.62,185.61,0.03]
[1755300117477,101.62572552,185.62,185.61,0.03]
[1755300117684,75.62572552,185.62,185.61,0.03]
[1755300117881,41.10621557,185.59,185.58,0.2]
[1755300118190,95.53837502,185.59,185.58,0.2]
[1755300118411,49.34525221,185.59,185.58,0.2]
[1755300118707,26.0,185.59,185.58,0.2]
[1755300118882,15.10621557,185.6,185.58,0.2]
[1755300119206,26.43929261,185.6,185.58,0.2]
[1755300119407,11.33307704,185.59,185.58,0.2]
[1755300119584,26.43929261,185.6,185.58,0.2]
[1755300120094,26.43929261,185.6,185.58,5.58847733]
[1755300120406,37.33307704,185.61,185.58,0.2]
[1755300120585,3.57063774,185.6,185.58,0.2]
[1755300120788,18.67685331,185.61,185.58,6.25850326]
[1755300121107,15.10621557,185.61,185.58,6.25850326]
[1755300121284,37.33307704,185.63,185.59,0.67]
[1755300121486,15.10621557,185.64,185.6,5.38793103]
[1755300121789,11.33307704,185.66,185.61,12.00307704]
[1755300122016,3.57236455,185.65,185.61,0.67]
[1755300122304,38.03307704,185.66,185.6,16.72100807]
[1755300122305,3.57236455,185.64,185.6,16.72100807]
[1755300122506,15.10621557,185.67,185.62,12.00307704]
[1755300122713,3.57428617,185.66,185.63,0.67]
[1755300122897,3.57428617,185.66,185.64,0.67]
[1755300123214,41.10621557,185.67,185.64,0.67]
[1755300123599,15.10621557,185.67,185.64,6.05669239]
[1755300123805,26.43929261,185.67,185.64,5.38669239]
[1755300124008,52.43929261,185.67,185.64,5.38669239]
[1755300124217,0.06,185.69,185.65,12.00307704]
[1755300124406,0.06,185.69,185.66,11.33307704]
[1755300124710,11.33307704,185.67,185.62,39.68]
[1755300124912,11.33307704,185.67,185.62,51.68307704]
[1755300125102,12.03307704,185.67,185.62,40.35]
[1755300125411,3.57844227,185.66,185.62,40.35]
[1755300125610,15.10621557,185.68,185.63,6.05706028]
[1755300125910,26.06,185.69,185.63,6.05706028]
[1755300125911,11.33307704,185.66,185.63,5.38706028]
[1755300126215,12.03307704,185.67,185.63,5.38706028]
[1755300126412,3.5793005,185.66,185.63,5.38706028]
[1755300126717,12.03307704,185.67,185.63,5.38706028]
[1755300126916,3.57930349,185.66,185.63,5.38706028]
[1755300127118,12.03307704,185.67,185.63,5.38706028]
[1755300127296,11.33307704,185.65,185.62,124.26730954]
[1755300128404,11.33307704,185.65,185.62,84.58730954]
[1755300128916,11.33307704,185.63,185.62,79.2]
[1755300129235,26.0,185.67,185.62,12.00307704]
[1755300129402,3.58144403,185.66,185.63,12.00307704]
[1755300129603,3.58253502,185.68,185.65,11.33307704]
[1755300129799,0.06,185.69,185.67,11.33307704]
[1755300132796,0.06,185.69,185.68,40.33]
[1755300132995,0.06,185.69,185.68,12.00307704]
[1755300133197,0.06,185.69,185.68,57.04868669]
[1755300133414,0.06,185.69,185.68,45.71560965]
[1755300133615,0.06,185.69,185.68,57.04868669]
[1755300134712,0.06,185.69,185.68,39.66]
[1755300134909,3.64206222,185.69,185.65,0.67]
[1755300135111,0.06,185.69,185.67,39.66]
[1755300136229,0.06,185.69,185.67,118.86]
[1755300136597,0.06,185.69,185.68,12.02307704]
[1755300137722,0.06,185.69,185.67,84.58582815]
[1755300137913,0.67,185.68,185.64,79.2]
[1755300138235,11.39307704,185.69,185.65,45.02624889]
[1755300138820,12.06307704,185.69,185.65,45.02624889]
[1755300139019,12.00307704,185.68,185.62,12.02307704]
[1755300139231,14.91528964,185.67,185.63,39.64]
[1755300139534,11.33307704,185.67,185.63,40.33]
[1755300139842,11.33307704,185.67,185.63,45.71699578]
[1755300140206,11.33307704,185.67,185.63,45.02699578]
[1755300140511,11.33307704,185.67,185.64,0.69]
[1755300141232,11.33307704,185.67,185.63,45.02699578]
[1755300141233,14.91587258,185.68,185.63,45.02699578]
[1755300141535,11.33307704,185.68,185.64,0.69]
[1755300141766,0.06,185.69,185.65,0.69]
[1755300141910,11.39307704,185.69,185.66,45.0261898]
[1755300142110,3.58317977,185.68,185.66,39.64]
[1755300142310,11.39307704,185.69,185.66,39.64]
[1755300142527,11.33307704,185.67,185.66,39.64]
[1755300142829,12.00307704,185.67,185.66,39.64]
[1755300143314,12.00307704,185.67,185.57,39.50164741]
[1755300143315,30.69227974,185.67,185.62,79.2]
[1755300143513,11.33307704,185.64,185.63,39.62]
[1755300143919,14.91580195,185.64,185.63,39.62]
[1755300144124,11.33307704,185.64,185.63,39.62]
[1755300144334,3.58313245,185.64,185.63,39.62]
[1755300144521,14.91620949,185.64,185.63,39.62]
[1755300145141,14.91620949,185.64,185.61,39.62]
[1755300145353,11.33307704,185.64,185.61,39.62]
[1755300145641,11.33307704,185.64,185.61,39.65]
[1755300146426,11.33307704,185.64,185.61,45.03760165]
[1755300147210,11.33307704,185.64,185.61,45.72760165]
[1755300147517,41.77621557,185.67,185.61,45.03760165]
[1755300147714,3.58514379,185.66,185.62,12.02307704]
[1755300147910,3.58514379,185.65,185.63,0.69]
[1755300148130,12.00307704,185.68,185.64,39.62]
[1755300148448,3.58553676,185.67,185.64,39.62]
[1755300148630,3.58553676,185.66,185.64,39.62]
[1755300148950,11.33307704,185.67,185.64,39.62]
[1755300149121,3.58545328,185.66,185.64,39.62]
[1755300149319,11.33307704,185.68,185.64,40.31]
[1755300149525,3.58568289,185.67,185.65,0.69]
[1755300149725,11.33307704,185.68,185.66,5.3861898]
[1755300149927,3.58551842,185.67,185.66,5.3861898]
[1755300150144,11.33307704,185.68,185.65,84.58639726]
[1755300150360,26.43929261,185.66,185.64,39.62]
[1755300150654,34.67754849,185.65,185.61,0.03]
[1755300150828,11.33307704,185.62,185.61,0.03]
[1755300151032,14.91901492,185.62,185.61,0.03]
[1755300151550,34.67591677,185.62,185.61,0.03]
[1755300151771,40.06326727,185.62,185.61,0.03]
[1755300152338,44.53353535,185.62,185.61,0.03]
[1755300152849,44.53353535,185.62,185.59,0.03]
[1755300152850,15.10621557,185.61,185.59,0.03]
[1755300153049,34.00591677,185.6,185.59,0.03]
[1755300153255,78.77201922,185.6,185.59,0.03]
[1755300153432,78.10201922,185.6,185.59,0.03]
[1755300153636,78.77201922,185.6,185.59,0.03]
[1755300153827,84.15995025,185.6,185.59,0.03]
[1755300155253,79.6838478,185.6,185.59,0.03]
[1755300157451,84.15995025,185.6,185.59,0.03]
[1755300158736,79.6838478,185.6,185.59,0.03]
[1755300158933,79.67244608,185.6,185.59,0.03]